bitfinex/quotes_BTCUSD_20250522
["timestamp","ask_amount","ask_price","bid_price","bid_amount"]
[1747938703405,0.080256,111700.0,111690.0,5.70750577]
[1747938703623,0.02700807,111700.0,111690.0,5.71645864]
[1747938703839,0.03596022,111700.0,111690.0,5.72811916]
[1747938704037,0.03596022,111700.0,111690.0,5.71916621]
[1747938704241,0.04491261,111700.0,111690.0,5.71916629]
[1747938704451,0.10771261,111700.0,111690.0,5.71916629]
[1747938704601,0.10771253,111700.0,111690.0,5.72811932]
[1747938704807,0.09876022,111700.0,111690.0,5.70225991]
[1747938705016,0.10771325,111700.0,111690.0,5.72016637]
[1747938705216,0.10771317,111700.0,111690.0,5.72016637]
[1747938705418,0.10771381,111700.0,111690.0,5.72016637]
[1747938705804,0.28676483,111700.0,111690.0,5.71121318]
[1747938706115,0.10771381,111700.0,111690.0,5.72016637]
[1747938706807,0.09876126,111700.0,111690.0,5.72911948]
[1747938707037,0.09876126,111700.0,111690.0,5.72372754]
[1747938707212,0.09876126,111700.0,111690.0,5.73268065]
[1747938708047,0.09876126,111700.0,111690.0,5.72372754]
[1747938708255,0.09876126,111700.0,111690.0,5.73268065]
[1747938708644,0.01805616,111700.0,111690.0,5.74163312]
[1747938708845,0.01805616,111700.0,111690.0,5.7416332]
[1747938709065,0.01805616,111700.0,111690.0,5.73267993]
[1747938709267,0.02700839,111700.0,111690.0,5.73267993]
[1747938709440,0.03596078,111700.0,111690.0,5.73268001]
[1747938709652,0.00910409,111700.0,111690.0,5.7416328]
[1747938709872,0.02700815,111700.0,111690.0,5.7416328]
[1747938710135,0.03596046,111700.0,111690.0,5.73268001]
[1747938710443,0.03596046,111700.0,111690.0,5.81319262]
[1747938710653,0.02700815,111700.0,111690.0,5.83109828]
[1747938710882,0.01805632,111700.0,111690.0,5.81319262]
[1747938711088,0.01805632,111700.0,111690.0,5.83109828]
[1747938711618,0.19710734,111700.0,111690.0,5.51801329]
[1747938711824,0.03596086,111700.0,111690.0,5.80423959]
[1747938712033,0.10841325,111700.0,111690.0,5.81319246]
[1747938712259,0.09946078,111700.0,111690.0,5.82214525]
[1747938712467,0.09946078,111700.0,111690.0,5.81319246]
[1747938712649,0.02700847,111700.0,111690.0,5.82214541]
[1747938712887,0.018056,111700.0,111690.0,5.82214541]
[1747938713095,0.03596038,111700.0,111690.0,5.82214549]
[1747938713300,0.03596038,111700.0,111690.0,5.83109828]
[1747938713845,0.03596094,111700.0,111690.0,5.82214557]
[1747938714021,0.03596094,111700.0,111690.0,5.83109844]
[1747938714229,0.03596094,111700.0,111690.0,5.83109804]
[1747938714468,0.03596094,111700.0,111690.0,5.82214525]
[1747938714645,0.09876094,111700.0,111690.0,5.83109804]
[1747938715453,0.09876094,111700.0,111690.0,5.82214525]
[1747938715714,0.09876094,111700.0,111690.0,5.82210525]
[1747938715928,0.09876094,111700.0,111690.0,5.20338525]
[1747938716101,0.09876094,111700.0,111690.0,5.82210525]
[1747938716305,0.10771341,111700.0,111690.0,5.54483238]
[1747938716506,0.27781292,111700.0,111690.0,5.07802773]
[1747938716708,0.27781292,111700.0,111690.0,5.70570092]
[1747938716920,0.27781292,111700.0,111690.0,5.71465403]
[1747938717071,0.27781292,111700.0,111690.0,5.09593403]
[1747938717274,0.27781292,111700.0,111690.0,5.71465403]
[1747938717666,0.27781292,111700.0,111690.0,5.70570092]
[1747938717843,0.00910425,111700.0,111690.0,5.44435148]
[1747938718159,0.00015226,111700.0,111690.0,5.53389704]
[1747938718383,0.00015226,111700.0,111690.0,5.56549704]
[1747938718755,0.00015226,111700.0,111690.0,5.59849704]
[1747938719844,0.00015226,111700.0,111690.0,5.93849704]
[1747938720046,0.00015226,111700.0,111690.0,5.92427543]
[1747938720731,0.08666081,111740.0,111730.0,0.01789988]
[1747938720894,0.09576142,111740.0,111730.0,5.03490052]
[1747938721138,0.09576134,111740.0,111730.0,5.03266326]
[1747938721260,0.07844979,111740.0,111730.0,5.03266326]
[1747938721489,0.09634799,111740.0,111730.0,5.04685352]
[1747938721688,0.28428418,111740.0,111730.0,5.03790394]
[1747938721925,0.28428418,111740.0,111730.0,5.04685368]
[1747938721926,0.27533548,111740.0,111730.0,5.04685368]
[1747938722128,0.27733548,111740.0,111730.0,5.04685368]
[1747938722645,0.27733548,111740.0,111730.0,5.05580334]
[1747938722646,0.28628482,111740.0,111730.0,5.05580334]
[1747938723046,0.10729789,111740.0,111730.0,5.05580334]
[1747938723281,0.28628482,111740.0,111730.0,5.05580334]
[1747938723470,0.28928482,111740.0,111730.0,5.05580334]
[1747938723838,0.28033596,111740.0,111730.0,5.05580334]
[1747938724241,0.28033596,111740.0,111730.0,5.04685368]
[1747938724467,0.28033596,111740.0,111730.0,5.05747201]
[1747938725925,0.28033596,111740.0,111730.0,5.06642167]
[1747938726446,0.28033596,111740.0,111730.0,5.05223141]
[1747938727055,0.28033596,111740.0,111730.0,5.39223141]
[1747938727293,0.28033596,111740.0,111730.0,5.04328175]
[1747938728363,0.08345003,111740.0,111730.0,5.05223133]
[1747938728727,0.09239929,111740.0,111730.0,5.05223133]
[1747938729368,0.27138622,111740.0,111730.0,5.04328175]
[1747938729568,0.27138622,111740.0,111730.0,5.03425201]
[1747938729746,0.27138622,111740.0,111730.0,5.02363368]
[1747938730328,0.27138622,111740.0,111730.0,5.03258342]
[1747938732396,0.27138622,111740.0,111730.0,5.04153308]
[1747938732777,0.27138622,111740.0,111730.0,5.03258374]
[1747938732972,0.27138622,111740.0,111730.0,5.04153348]
[1747938733378,0.28033556,111740.0,111730.0,5.04153348]
[1747938736165,0.28033556,111740.0,111730.0,5.05048314]
[1747938736374,0.28033556,111740.0,111730.0,5.05052314]
[1747938737370,0.28033556,111740.0,111730.0,5.04982031]
[1747938737724,0.09239929,111740.0,111730.0,5.05052266]
[1747938737925,0.27138622,111740.0,111730.0,5.03262342]
[1747938738234,0.09239929,111740.0,111730.0,5.04157308]
[1747938738438,0.09239929,111740.0,111730.0,5.05052266]
[1747938738654,0.10134863,111740.0,111730.0,5.05052266]
[1747938739078,0.09239929,111740.0,111730.0,5.05052266]
[1747938739890,0.09239929,111740.0,111730.0,5.43672266]
[1747938740906,0.09239929,111740.0,111730.0,5.41882342]
[1747938741195,0.09239929,111740.0,111730.0,5.427773]
[1747938741544,0.09239929,111740.0,111730.0,5.37902515]
[1747938742399,0.08345003,111740.0,111730.0,5.71902515]
[1747938742588,0.09239913,111740.0,111730.0,5.71902515]
[1747938743591,0.06249913,111740.0,111730.0,5.71902515]
[1747938743793,0.05355003,111740.0,111730.0,5.71902515]
[1747938744054,0.08365003,111740.0,111730.0,5.71902515]
[1747938744414,0.08365003,111740.0,111730.0,5.71554515]
[1747938745023,0.07470101,111740.0,111730.0,5.71554515]
[1747938745419,0.08365003,111740.0,111730.0,5.71554515]
[1747938746045,0.00515223,111740.0,111730.0,5.81963156]
[1747938746246,0.00515223,111740.0,111730.0,5.88103156]
[1747938747049,0.00215223,111740.0,111730.0,5.88103156]
[1747938747529,0.17901025,111770.0,111760.0,0.18790248]
[1747938747530,0.25155719,111770.0,111760.0,0.18790248]
[1747938747733,0.26050405,111770.0,111760.0,1.36449147]
[1747938748175,0.07254638,111770.0,111760.0,5.54172907]
[1747938748374,1.01894542,111780.0,111770.0,0.54577859]
[1747938748554,1.04593484,111780.0,111770.0,5.13008457]
[1747938749143,1.04593476,111780.0,111770.0,4.91760308]
[1747938749338,1.22485828,111780.0,111770.0,4.9086567]
[1747938749798,1.22485828,111780.0,111770.0,4.98389585]
[1747938749799,1.22685828,111780.0,111770.0,4.98389585]
[1747938749934,1.03898934,111780.0,111770.0,5.00108837]
[1747938750530,1.02109762,111780.0,111770.0,5.00112837]
[1747938750909,1.0210977,111780.0,111770.0,5.05705097]
[1747938751054,1.0210977,111780.0,111770.0,5.02625097]
[1747938751455,1.02409762,111780.0,111770.0,5.02625097]
[1747938751661,1.02209762,111780.0,111770.0,5.02625097]
[1747938752073,1.0310432,111780.0,111770.0,5.02625097]
[1747938752263,1.11123492,111780.0,111770.0,5.31059497]
[1747938752474,1.2722668,111780.0,111770.0,5.114423]
[1747938752683,1.2722668,111780.0,111770.0,5.59002939]
[1747938753067,1.2722668,111780.0,111770.0,5.59897617]
[1747938753267,1.2692668,111780.0,111770.0,5.59897617]
[1747938753746,1.2702668,111780.0,111770.0,5.59897617]
[1747938753931,1.2702668,111780.0,111770.0,5.40214364]
[1747938754116,1.26132106,111780.0,111770.0,5.40214364]
[1747938754310,1.26132106,111780.0,111770.0,4.78710364]
[1747938754511,1.26132106,111780.0,111770.0,2.20284]
[1747938754716,1.35086662,111780.0,111770.0,4e-05]
[1747938754923,1.35086662,111780.0,111770.0,0.61504]
[1747938755098,1.40086662,111780.0,111770.0,0.61504]
[1747938755290,1.40921355,111780.0,111770.0,0.61504]
[1747938755934,1.41121355,111780.0,111770.0,0.61504]
[1747938756774,1.41021355,111780.0,111770.0,0.61504]
[1747938756980,1.41221355,111780.0,111770.0,0.61504]
[1747938757179,1.41221355,111780.0,111770.0,5.06414364]
[1747938757587,1.36221355,111780.0,111770.0,5.04770064]
[1747938757978,1.27266799,111780.0,111770.0,4.75998]
[1747938758723,1.27266799,111780.0,111770.0,3.66498]
[1747938758896,1.27266799,111780.0,111770.0,1.93548]
[1747938761897,1.27266799,111780.0,111770.0,1.48558]
[1747938763947,1.36221355,111780.0,111770.0,1.48562]
[1747938764193,1.36221355,111780.0,111770.0,1.30012]
[1747938766206,1.36221355,111780.0,111770.0,0.74452]
[1747938766946,1.36221355,111780.0,111770.0,0.10424]
[1747938767147,1.36221355,111780.0,111770.0,0.61712]
[1747938769250,1.36221355,111780.0,111770.0,1.00324]
[1747938769716,0.25744982,111760.0,111750.0,0.62772064]
[1747938769916,0.25744982,111760.0,111750.0,5.13598364]
[1747938770135,0.25744982,111760.0,111750.0,3.56142]
[1747938770339,0.25744982,111760.0,111750.0,3.21582]
[1747938770953,0.25744982,111760.0,111750.0,3.48498]
[1747938771162,0.25744982,111760.0,111750.0,3.48698]
[1747938772315,0.25744982,111760.0,111750.0,3.26798]
[1747938772729,0.25744982,111760.0,111750.0,3.25138]
[1747938773258,0.25744982,111760.0,111750.0,2.6343]
[1747938773460,0.25744982,111760.0,111750.0,3.25138]
[1747938773870,0.25744982,111760.0,111750.0,2.66208]
[1747938774046,0.25744982,111760.0,111750.0,2.60208]
[1747938774717,0.25744982,111760.0,111750.0,2.18328]
[1747938776352,0.25744982,111760.0,111750.0,1.82258]
[1747938776704,0.34699538,111760.0,111750.0,1.26192]
[1747938776872,0.34699538,111760.0,111750.0,1.49688]
[1747938778311,0.34699538,111760.0,111750.0,1.883]
[1747938781114,0.34699538,111760.0,111750.0,1.61484]
[1747938781490,0.34699538,111760.0,111750.0,1.883]
[1747938781931,0.34699538,111760.0,111750.0,1.88304]
[1747938784715,0.34699538,111760.0,111750.0,1.34624]
[1747938784896,0.34699538,111760.0,111750.0,1.00624]
[1747938785478,0.34699538,111760.0,111750.0,1.00628]
[1747938785701,0.34699538,111760.0,111750.0,0.38916]
[1747938785899,0.35536579,111760.0,111750.0,1.00628]
[1747938789505,0.35536579,111760.0,111750.0,0.73812]
[1747938789702,0.35536579,111760.0,111750.0,1.00632]
[1747938790490,0.19688505,111740.0,111730.0,4e-05]
[1747938790668,0.35810102,111740.0,111730.0,0.61348]
[1747938790871,0.35810102,111740.0,111730.0,0.34528]
[1747938791078,0.36806102,111740.0,111730.0,0.61348]
[1747938791330,0.42376566,111740.0,111730.0,0.61348]
[1747938791532,0.36806102,111740.0,111730.0,0.61348]
[1747938791981,0.36806102,111740.0,111730.0,0.61352]
[1747938792318,0.36906102,111740.0,111730.0,4e-05]
[1747938792612,0.35969061,111740.0,111730.0,4e-05]
[1747938793455,0.36169061,111740.0,111730.0,4e-05]
[1747938793656,0.42133906,111740.0,111730.0,4e-05]
[1747938793853,0.41933906,111740.0,111730.0,4e-05]
[1747938794060,0.42933906,111740.0,111730.0,4e-05]
[1747938794308,0.42933906,111740.0,111690.0,4e-05]
[1747938794309,0.00895215,111700.0,111690.0,4e-05]
[1747938794524,0.35087228,111700.0,111690.0,0.34547223]
[1747938794659,0.76374927,111700.0,111690.0,0.34547223]
[1747938795030,0.77829012,111700.0,111690.0,0.00019223]
[1747938795191,0.76833012,111700.0,111690.0,0.00019223]
[1747938795400,0.20695083,111680.0,111670.0,0.34532]
[1747938795599,0.20695083,111680.0,111670.0,0.34547226]
[1747938795600,0.35979639,111680.0,111670.0,0.34547226]
[1747938795799,0.70979639,111680.0,111670.0,0.34547226]
[1747938797069,0.71279639,111680.0,111670.0,0.34547226]
[1747938797282,1.40337724,111680.0,111670.0,0.00015226]
[1747938798470,0.70837724,111680.0,111670.0,0.00015226]
[1747938798776,0.61449477,111670.0,111660.0,4e-05]
[1747938798982,1.05063267,111670.0,111660.0,4e-05]
[1747938799209,0.62498461,111650.0,111640.0,4e-05]
[1747938799448,0.62498461,111650.0,111640.0,0.00054783]
[1747938799449,0.98285017,111650.0,111640.0,0.00054783]
[1747938799659,1.00337671,111650.0,111640.0,0.00054783]
[1747938799866,0.99337671,111650.0,111640.0,0.00054783]
[1747938800069,0.25150445,111640.0,111630.0,4e-05]
[1747938800435,0.36559086,111640.0,111630.0,0.00013103]
[1747938800880,0.38246886,111640.0,111630.0,0.00013103]
[1747938801569,0.38346886,111640.0,111630.0,0.00113103]
[1747938802050,0.43346886,111640.0,111630.0,0.00113103]
[1747938802671,0.43346886,111640.0,111630.0,0.00213103]
[1747938802672,0.43846886,111640.0,111630.0,0.00213103]
[1747938803099,0.38048801,111640.0,111630.0,0.00213103]
[1747938803310,0.39645001,111640.0,111630.0,0.61605103]
[1747938808080,0.33365001,111640.0,111630.0,0.61605103]
[1747938808606,0.39535001,111640.0,111630.0,0.61605103]
[1747938809144,0.39535001,111640.0,111630.0,0.00217103]
[1747938809145,1.51529498,111640.0,111630.0,0.00217103]
[1747938809369,0.81933498,111640.0,111630.0,0.00217103]
[1747938809531,0.80933498,111640.0,111630.0,0.00217103]
[1747938809738,0.83621498,111640.0,111630.0,0.00217103]
[1747938810244,0.84621498,111640.0,111630.0,0.00217103]
[1747938810416,0.75985086,111640.0,111630.0,0.00217103]
[1747938810851,0.76985086,111640.0,111630.0,0.00217103]
[1747938814533,0.76985086,111640.0,111630.0,0.00099222]
[1747938814741,0.76985086,111640.0,111630.0,0.26951222]
[1747938816117,0.74531001,111640.0,111630.0,0.26951222]
[1747938816321,0.73535001,111640.0,111630.0,0.26951222]
[1747938816522,0.33365001,111640.0,111630.0,0.26951222]
[1747938816982,0.33365001,111640.0,111630.0,0.5577096]
[1747938817774,0.32765001,111640.0,111630.0,0.55675738]
[1747938817974,0.32765001,111640.0,111630.0,4.74720038]
[1747938818179,0.23910445,111640.0,111630.0,4.77930038]
[1747938818606,0.23910445,111640.0,111630.0,5.11930038]
[1747938818875,0.18910445,111640.0,111630.0,5.11930038]
[1747938819075,0.18910445,111640.0,111630.0,2.46195738]
[1747938819468,0.19310445,111640.0,111630.0,2.46295738]
[1747938819887,0.19310445,111640.0,111630.0,2.19443738]
[1747938820091,0.19310445,111640.0,111630.0,0.26956]
[1747938820092,0.28265001,111640.0,111630.0,0.26956]
[1747938820290,0.34575001,111640.0,111630.0,0.00104]
[1747938820493,0.34575001,111640.0,111630.0,0.6184]
[1747938820758,0.35571001,111640.0,111630.0,0.6184]
[1747938820872,0.35571001,111640.0,111630.0,0.34988]
[1747938820873,0.41740947,111640.0,111630.0,0.34988]
[1747938821082,0.41740947,111640.0,111630.0,0.6184]
[1747938821285,0.34575001,111640.0,111630.0,0.6184]
[1747938821540,0.31505001,111640.0,111630.0,0.6184]
[1747938823768,0.28265001,111640.0,111630.0,0.6184]
[1747938826087,0.28265001,111640.0,111630.0,0.62961454]
[1747938826959,0.28265001,111640.0,111630.0,5.13895492]
[1747938827165,0.19310445,111640.0,111630.0,5.13895492]
[1747938827782,0.19310445,111640.0,111630.0,4.85075754]
[1747938829558,0.21817341,111640.0,111630.0,4.85075754]
[1747938829996,0.21817341,111640.0,111630.0,4.78895754]
[1747938830220,0.21817341,111640.0,111630.0,2.25131454]
[1747938831159,0.21817341,111640.0,111630.0,2.28391454]
[1747938831355,0.21817341,111640.0,111630.0,2.25131454]
[1747938834392,0.21817341,111640.0,111630.0,2.66795454]
[1747938835565,0.19310445,111640.0,111630.0,2.66795454]
[1747938836771,0.19310445,111640.0,111630.0,2.65674]
[1747938836971,0.19310445,111640.0,111630.0,2.62674]
[1747938837500,0.19310445,111640.0,111630.0,2.68824]
[1747938838563,0.19310445,111640.0,111630.0,2.97643738]
[1747938839179,0.19310445,111640.0,111630.0,2.94613738]
[1747938839379,0.19310445,111640.0,111630.0,2.65794]
[1747938839578,0.19310445,111640.0,111630.0,2.6267]
[1747938840839,0.19310445,111640.0,111630.0,2.92385554]
[1747938841053,0.02291368,111640.0,111630.0,3.1814342]
[1747938841244,0.21997549,111640.0,111630.0,3.1724766]
[1747938841611,0.21997549,111640.0,111630.0,3.18143436]
[1747938842234,0.21101877,111640.0,111630.0,3.18143436]
[1747938842640,0.20106181,111640.0,111630.0,3.1724766]
[1747938843002,0.19706181,111640.0,111630.0,3.1714766]
[1747938843391,0.19706181,111640.0,111630.0,3.18210749]
[1747938843635,0.20006181,111640.0,111630.0,3.18210749]
[1747938843835,0.20006181,111640.0,111630.0,3.18410749]
[1747938845733,0.20006181,111640.0,111630.0,3.18402749]
[1747938845934,0.20006181,111640.0,111630.0,3.18402765]
[1747938846143,0.20006181,111640.0,111630.0,3.19298557]
[1747938846352,0.18214725,111640.0,111630.0,3.16443884]
[1747938846552,0.18214725,111640.0,111630.0,2.01038]
[1747938846752,0.18214725,111640.0,111630.0,2.10492]
[1747938846952,0.18214725,111640.0,111630.0,1.48768]
[1747938847155,0.18214725,111640.0,111630.0,2.10492]
[1747938847567,0.18214725,111640.0,111630.0,2.42321738]
[1747938847776,0.18214725,111640.0,111630.0,2.45361738]
[1747938848119,0.18214725,111640.0,111630.0,2.42077738]
[1747938849270,0.18214725,111640.0,111630.0,2.63034068]
[1747938849686,0.18214725,111640.0,111630.0,2.45117738]
[1747938850281,0.18214725,111640.0,111630.0,2.42077738]
[1747938850492,0.18214725,111640.0,111630.0,2.39067738]
[1747938850697,0.18214725,111640.0,111630.0,2.42077738]
[1747938851315,0.18214725,111640.0,111630.0,2.43175101]
[1747938852452,0.18214725,111640.0,111630.0,1.81695101]
[1747938852663,0.18214725,111640.0,111630.0,2.11345363]
[1747938852830,0.18214725,111640.0,111630.0,2.40165101]
[1747938853493,0.18214725,111640.0,111630.0,1.84497363]
[1747938853742,0.18214725,111640.0,111630.0,2.11345363]
[1747938853967,0.18214725,111640.0,111630.0,1.95845363]
[1747938854168,0.18214725,111640.0,111630.0,2.24665101]
[1747938854973,0.18214725,111640.0,111630.0,2.23567738]
[1747938856259,0.18214725,111640.0,111630.0,1.96719738]
[1747938856531,0.18214725,111640.0,111630.0,2.23567738]
[1747938859145,0.18214725,111640.0,111630.0,2.41484068]
[1747938859347,0.20006149,111640.0,111630.0,2.44524068]
[1747938859552,0.20901861,111640.0,111630.0,2.48429868]
[1747938859759,0.0298712,111640.0,111630.0,2.50221412]
[1747938859974,0.020914,111640.0,111630.0,2.50221412]
[1747938860177,0.02091352,111640.0,111630.0,2.50221412]
[1747938860360,0.03882768,111640.0,111630.0,2.50221412]
[1747938860551,0.22693229,111640.0,111630.0,2.49325652]
[1747938860730,0.21797565,111640.0,111630.0,2.49325652]
[1747938860935,0.02987104,111640.0,111630.0,2.50221412]
[1747938861095,0.04778568,111640.0,111630.0,2.5022142]
[1747938861535,0.04778568,111640.0,111630.0,2.49325652]
[1747938861753,0.22693293,111640.0,111630.0,2.49325652]
[1747938861950,0.21797605,111640.0,111630.0,2.49325652]
[1747938862826,0.21797605,111640.0,111630.0,2.50221428]
[1747938863843,0.0388288,111640.0,111630.0,2.5022142]
[1747938864058,0.02091416,111640.0,111630.0,2.5111718]
[1747938864260,0.0209136,111640.0,111630.0,2.5111718]
[1747938864465,0.02987056,111640.0,111630.0,2.5111718]
[1747938864666,0.03882768,111640.0,111630.0,2.5111718]
[1747938865100,0.02987056,111640.0,111630.0,2.52571265]
[1747938865275,0.03882776,111640.0,111630.0,2.52571265]
[1747938865814,0.21797557,111640.0,111630.0,2.50779737]
[1747938865949,0.04778568,111640.0,111630.0,2.52571281]
[1747938866156,0.02987104,111640.0,111630.0,2.53467041]
[1747938866882,0.21797565,111640.0,111630.0,2.49883953]
[1747938867064,0.21797565,111640.0,111630.0,2.51675529]
[1747938867400,0.21797565,111640.0,111630.0,2.52571305]
[1747938867618,0.02987104,111640.0,111630.0,1.91987065]
[1747938867820,0.02987104,111640.0,111630.0,2.53459065]
[1747938868145,0.02987104,111640.0,111630.0,1.91987065]
[1747938868407,0.02987104,111640.0,111630.0,2.53459065]
[1747938869268,0.02987104,111640.0,111630.0,1.86054068]
[1747938869269,0.20901829,111640.0,111630.0,1.86054068]
[1747938869472,0.20901829,111640.0,111630.0,2.43267676]
[1747938869473,0.20901877,111640.0,111630.0,2.43267676]
[1747938870332,20.20901877,111640.0,111630.0,1.81795676]
[1747938870511,20.20901877,111640.0,111630.0,2.43267676]
[1747938870842,20.20901877,111640.0,111630.0,2.43267684]
[1747938871043,20.20901877,111640.0,111630.0,1.8358726]
[1747938871265,20.34800737,111640.0,111630.0,1.49694]
[1747938871473,20.34800737,111640.0,111630.0,1.00332]
[1747938871878,20.25846181,111640.0,111630.0,5.45086038]
[1747938872094,20.22946181,111640.0,111630.0,5.45086038]
[1747938873046,20.25926181,111640.0,111630.0,4.07711738]
[1747938874592,20.25926181,111640.0,111630.0,3.46239738]
[1747938874797,20.25926181,111640.0,111630.0,4.07711738]
[1747938878304,20.25926181,111640.0,111630.0,3.52328]
[1747938878521,20.25926181,111640.0,111630.0,3.79176]
[1747938878871,20.25926181,111640.0,111630.0,4.07995738]
[1747938879833,20.34880737,111640.0,111630.0,0.3886]
[1747938880070,20.34880737,111640.0,111630.0,1.00616]
[1747938881894,0.18813831,111620.0,111610.0,0.40829154]
[1747938882093,0.18813831,111620.0,111610.0,5.21391169]
[1747938882941,0.18813831,111620.0,111610.0,5.13666038]
[1747938883124,0.18813831,111620.0,111610.0,5.40514038]
[1747938883493,0.001,111620.0,111610.0,5.63347664]
[1747938883686,0.0099584,111620.0,111610.0,5.78040053]
[1747938883955,0.02787528,111620.0,111610.0,5.78040053]
[1747938884135,0.01891664,111620.0,111610.0,5.78040053]
[1747938884526,0.03683392,111620.0,111610.0,5.78040053]
[1747938884726,0.01891664,111620.0,111610.0,5.78040053]
[1747938884936,0.0278752,111620.0,111610.0,5.78040053]
[1747938885336,0.03683392,111620.0,111610.0,5.78040053]
[1747938885537,0.0278752,111620.0,111610.0,5.78040053]
[1747938885714,0.001,111620.0,111610.0,5.78040053]
[1747938886120,0.00995832,111620.0,111610.0,5.44040053]
[1747938886324,0.001,111620.0,111610.0,5.44040053]
[1747938888267,0.001,111620.0,111610.0,6.24386053]
[1747938888495,20.0,111640.0,111630.0,0.20603706]
[1747938888717,20.0,111640.0,111630.0,5.73287883]
[1747938888890,20.00895664,111640.0,111630.0,5.73287883]
[1747938889094,20.0,111640.0,111630.0,5.73287883]
[1747938889823,20.003,111640.0,111630.0,5.73287883]
[1747938890030,20.004,111640.0,111630.0,5.73687883]
[1747938890245,20.001,111640.0,111630.0,5.73687883]
[1747938891371,20.001,111640.0,111630.0,5.76178775]
[1747938892007,20.001,111640.0,111630.0,5.73687883]
[1747938892223,20.001,111640.0,111630.0,6.04688775]
[1747938892224,17.82512144,111640.0,111630.0,6.04688775]
[1747938892464,17.82052144,111640.0,111630.0,6.39301971]
[1747938892686,17.77558618,111640.0,111630.0,6.39301971]
[1747938892895,17.77558618,111640.0,111630.0,6.04393971]
[1747938893103,13.64187649,111640.0,111630.0,3.13463971]
[1747938893308,11.65264274,111640.0,111630.0,3.17943866]
[1747938893518,9.77933221,111640.0,111630.0,3.25304395]
[1747938893729,7.90973058,111640.0,111630.0,3.258045]
[1747938893953,5.29577551,111640.0,111630.0,3.30684395]
[1747938894147,3.73071429,111640.0,111630.0,3.26767812]
[1747938894353,0.77233954,111640.0,111630.0,7.41767707]
[1747938894566,0.04798601,111640.0,111630.0,6.46843407]
[1747938894768,0.03734472,111640.0,111630.0,6.47543407]
[1747938894976,0.10485262,111720.0,111710.0,0.54588959]
[1747938895180,0.10536012,111720.0,111710.0,1.10248697]
[1747938895386,0.10536012,111720.0,111710.0,5.22143823]
[1747938895600,0.27542887,111720.0,111710.0,5.22143823]
[1747938896021,0.26647857,111720.0,111710.0,5.19458413]
[1747938896333,0.25257741,111720.0,111710.0,5.00659738]
[1747938896471,0.25257741,111720.0,111710.0,5.19458413]
[1747938896668,0.25257741,111720.0,111710.0,5.20353571]
[1747938896912,0.25257741,111720.0,111710.0,5.21248721]
[1747938897853,0.25257741,111720.0,111710.0,5.19454413]
[1747938898053,0.25857741,111720.0,111710.0,5.19454413]
[1747938898270,0.25857741,111720.0,111710.0,5.32153579]
[1747938898419,0.25857741,111720.0,111710.0,5.93885579]
[1747938898631,0.25857741,111720.0,111710.0,5.92990413]
[1747938899181,0.24962655,111720.0,111710.0,4.61831738]
[1747938899394,0.24962655,111720.0,111710.0,4.80630413]
[1747938899840,0.24962655,111720.0,111710.0,4.66077579]
[1747938900048,0.24962655,111720.0,111710.0,4.66972737]
[1747938900534,0.01790566,111690.0,111680.0,0.2254729]
[1747938900755,0.25847352,111690.0,111680.0,3.57230294]
[1747938900988,0.25847352,111690.0,111680.0,1.81136]
[1747938901170,0.25847352,111690.0,111680.0,1.0036]
[1747938902098,0.26047352,111690.0,111680.0,1.0036]
[1747938902274,0.25847352,111690.0,111680.0,1.0036]
[1747938902660,0.26147352,111690.0,111680.0,1.0036]
[1747938903254,0.08240598,111690.0,111680.0,5.65259083]
[1747938903459,0.26147336,111690.0,111680.0,5.4556]
[1747938903654,0.25252025,111690.0,111680.0,5.4536]
[1747938903862,0.25252025,111690.0,111680.0,3.1413]
[1747938904068,0.25252025,111690.0,111680.0,2.3239]
[1747938904270,0.25252025,111690.0,111680.0,1.3436]
[1747938904486,0.25252025,111690.0,111680.0,0.72636]
[1747938904948,0.25252025,111690.0,111680.0,1.3436]
[1747938905613,0.25252025,111690.0,111680.0,0.72636]
[1747938906014,0.25252025,111690.0,111680.0,1.3436]
[1747938907432,0.25252025,111690.0,111680.0,1.07528]
[1747938907639,0.25252025,111690.0,111680.0,1.3436]
[1747938908490,0.25252025,111690.0,111680.0,5.64163708]
[1747938908919,0.07345271,111690.0,111680.0,5.65954458]
[1747938909144,0.08240566,111690.0,111680.0,5.31954458]
[1747938909341,0.09135877,111690.0,111680.0,5.31954458]
[1747938910219,1.29063878,111690.0,111680.0,5.31954458]
[1747938910386,1.26378001,111690.0,111680.0,5.31954458]
[1747938910608,1.27273288,111690.0,111680.0,5.40909014]
[1747938910801,1.29063854,111690.0,111680.0,5.40909014]
[1747938911012,1.20228001,111690.0,111680.0,5.42363099]
[1747938911968,1.20228001,111690.0,111680.0,5.84053099]
[1747938913014,1.20228001,111690.0,111680.0,6.19112421]
[1747938914820,1.20228001,111690.0,111680.0,6.19465529]
[1747938916285,1.28963886,111690.0,111680.0,5.5684617]
[1747938916496,1.28963886,111690.0,111680.0,6.18842811]
[1747938916703,1.46870592,111690.0,111680.0,5.3650508]
[1747938916904,1.28963886,111690.0,111680.0,2.86615038]
[1747938917088,1.28068567,111690.0,111680.0,3.49170397]
[1747938917290,1.28068559,111690.0,111680.0,3.49170397]
[1747938917664,1.28068559,111690.0,111680.0,3.07480397]
[1747938917864,1.29859189,111690.0,111680.0,3.07480397]
[1747938918068,1.2896387,111690.0,111680.0,3.07480397]
[1747938918378,1.47765903,111690.0,111680.0,2.39609671]
[1747938918584,0.24853708,111680.0,111670.0,0.01061387]
[1747938918812,0.24853708,111680.0,111670.0,0.39693387]
[1747938919029,0.24853708,111680.0,111670.0,1.35353387]
[1747938919266,0.24853708,111680.0,111670.0,0.39693387]
[1747938919497,0.24849708,111680.0,111670.0,1.01353387]
[1747938919897,0.24900434,111680.0,111670.0,1.01453387]
[1747938920168,0.24900434,111680.0,111670.0,0.39793387]
[1747938920331,0.24900434,111680.0,111670.0,1.00292]
[1747938920723,0.24900434,111680.0,111670.0,1.00492]
[1747938921138,0.24900434,111680.0,111670.0,1.00292]
[1747938921348,0.24900434,111680.0,111670.0,1.00296]
[1747938921756,0.24900434,111680.0,111670.0,1.00396]
[1747938921965,0.24900434,111680.0,111670.0,1.004]
[1747938922617,0.24900434,111680.0,111670.0,1.003]
[1747938922937,0.24900434,111680.0,111670.0,1.004]
[1747938923773,0.25000434,111680.0,111670.0,1.004]
[1747938923979,0.07991452,111680.0,111670.0,5.31876294]
[1747938924187,0.2679516,111680.0,111670.0,5.30980855]
[1747938924403,0.2679516,111680.0,111670.0,5.3187631]
[1747938925161,0.2679516,111680.0,111670.0,4.67805392]
[1747938925369,0.2679516,111680.0,111670.0,3.33405392]
[1747938925563,0.2679516,111680.0,111670.0,3.68237392]
[1747938925776,0.2679516,111680.0,111670.0,3.69132863]
[1747938926102,0.2679516,111680.0,111670.0,3.39312863]
[1747938926697,0.07991452,111680.0,111670.0,3.67040318]
[1747938926898,0.08886835,111680.0,111670.0,3.67935765]
[1747938927103,0.27690543,111680.0,111670.0,3.67040318]
[1747938927507,0.26795192,111680.0,111670.0,3.66144863]